Cogmind - Beta 11 X5 @@@ ROGUE MODE // 2021.06.09 @ 20:29:09 Player: Runia Result: Self-destructed Performance ------------- Evolutions (5) 2500 Regions Visited (8) 1600 Robots Destroyed (78) 390 Value Destroyed (2851) 2851 Prototype IDs (4) 80 Alien Tech Used (0) 0 Bonus (120) 120 TOTAL SCORE: 7541 Bonus ------- High Alert Combat Kills 120 Cogmind --------- Core Integrity 939/1000 Matter 257/300 Energy 2/450 System Corruption 1% Temperature Warning (327) Movement Rolling (160) Ox4 Location -5/Factory Parts ------- > --- POWER (1) -------- (None) > --- PROPULSION (4) --- Compact Wheel > --- UTILITY (8) ------ High-capacity Storage Unit Energy Well Advanced Signal Interpreter Advanced Targeting Computer Makeshift Armor Plating Remote Shield Improved Hacking Suite > --- WEAPON (4) ------- Heavy Laser Ion Burst Cannon Flak Gun > --- INVENTORY (20) --- Light Ion Engine Wheel Compact Wheel Compact Wheel Advanced Heat Sink Enhanced Optical Array Phase Shifter Hardened Medium Armor Plating Advanced System Shield Plasma Rifle Phase Cannon Phase Cannon Ion Burst Cannon Ion Burst Cannon Gauss Rifle Guided EMP Blaster Missile Launcher Great Axe Heavy Pick Peak State ------------ > --- POWER ------------ Light Angular Momentum Engine > --- PROPULSION ------- Improved Medium Treads Improved Medium Treads Compact Wheel Armored Wheel > --- UTILITY ---------- Improved Cooling System High-capacity Storage Unit Energy Well Advanced Signal Interpreter Advanced Targeting Computer Makeshift Armor Plating Remote Shield Improved Hacking Suite > --- WEAPON ----------- Heavy Laser Ion Burst Cannon Gauss Rifle Flak Gun > --- INVENTORY -------- Light Ion Engine Wheel Wheel Compact Wheel Compact Wheel Advanced Heat Sink Enhanced Optical Array Phase Shifter Advanced System Shield Plasma Rifle Phase Cannon Phase Cannon Ion Burst Cannon Ion Burst Cannon Gauss Rifle Guided EMP Blaster Missile Launcher Great Axe Heavy Pick [Rating: 76] Favorites ----------- Power Improved Deuterium Engine Engine Improved Deuterium Engine Propulsion Compact Wheel Treads Light Treads Leg Aluminum Leg Wheel Compact Wheel Utility High-capacity Storage Unit Device Improved Cooling System Storage High-capacity Storage Unit Processor Advanced Targeting Computer Hackware System Shield Protection Improved Light Armor Plating Weapon Beam Rifle Energy Gun Beam Rifle Energy Cannon Phase Cannon Ballistic Gun Flak Gun Launcher Missile Launcher Slashing Weapon Scythe Build | -11 -10 -9 -8 -7 -7 -7 -6 -5 ------- Run | Scr Mat Mat Mat Fac Low Low Fac Fac Slots Evolved 10 | . . 2 2 2 . . 2 2 Power . | . . . . . . . . . Propulsion 2 | . . . 1 1 . . . . Utility 6 | . . 2 1 1 . . 1 1 Weapon 2 | . . . . . . . 1 1 Parts Attached 106 | . 4 25 21 8 10 3 20 15 Power 7 | . . 3 1 . 1 . . 2 Engine 7 | . . 3 1 . 1 . . 2 Core . | . . . . . . . . . Reactor . | . . . . . . . . . Propulsion 19 | . 2 2 2 4 3 . 6 . Treads 10 | . 1 2 1 2 1 . 3 . Leg . | . . . . . . . . . Wheel 9 | . 1 . 1 2 2 . 3 . Hover . | . . . . . . . . . Flight . | . . . . . . . . . Utility 38 | . 2 10 7 2 4 1 6 6 Device 11 | . 1 2 1 1 1 1 2 2 Storage 3 | . 1 1 . . . . . 1 Processor 5 | . . 1 2 . 1 . 1 . Hackware 3 | . . . 1 . . . 1 1 Protection 16 | . . 6 3 1 2 . 2 2 Artifact . | . . . . . . . . . Weapon 42 | . . 10 11 2 2 2 8 7 Energy Gun 22 | . . 5 6 2 2 1 3 3 Energy Cannon 4 | . . 1 1 . . . 1 1 Ballistic Gun 8 | . . 4 2 . . . 1 1 Ballistic Cannon . | . . . . . . . . . Launcher 5 | . . . 1 . . 1 1 2 Special Weapon . | . . . . . . . . . Impact Weapon . | . . . . . . . . . Slashing Weapon 3 | . . . 1 . . . 2 . Piercing Weapon . | . . . . . . . . . Special Melee Weapon . | . . . . . . . . . Unidentified Prototypes 4 | . . 1 . . . . 1 2 Parts Lost 43 | . . 12 7 4 9 . 5 6 Power 3 | . . 1 . . 1 . 1 . Propulsion 12 | . . . 1 3 4 . 1 3 Utility 17 | . . 6 3 . 3 . 2 3 Weapon 11 | . . 5 3 1 1 . 1 . Highest Loss Streak 8 | . . 6 3 2 8 . 5 4 Average Slot Usage (%) 95 | . 89 95 96 99 92 92 97 97 Engine 7 | . 14 10 9 7 7 7 4 3 Treads 11 | . 14 11 18 14 11 7 10 10 Wheel 13 | . 14 11 9 15 15 15 15 10 Device 10 | . 4 16 3 7 3 14 12 10 Storage 8 | . 14 11 9 7 7 7 6 10 Processor 10 | . . 1 12 15 14 15 13 11 Hackware 3 | . . . 3 7 4 . 6 6 Protection 8 | . . 12 13 7 9 7 6 3 Energy Gun 9 | . . 9 10 7 10 15 10 8 Ballistic Gun 7 | . 28 11 5 7 4 . 5 10 Naked Turns . | . . . . . . . . . Heaviest Build 85 | 13 29 56 59 59 66 66 70 85 Greatest Support 60 | 20 20 20 16 32 32 32 60 60 Greatest Overweight (x) 5 | . 1 3 5 2 2 2 2 3 Average Overweight (x) 1 | . . 2 3 1 1 1 1 1 Largest Inventory Capacity 20 | . 15 20 20 20 20 20 20 20 Average Capacity 19 | . 13 18 20 20 20 20 20 20 Most Carried 20 | . 7 19 20 20 17 19 20 20 Average Carried 16 | . 5 15 16 19 14 18 18 19 Final Capacity 20 | 8 15 20 20 20 20 20 20 20 Final Carried 20 | 6 7 13 20 17 16 19 19 20 Class Distribution -------------------- 47% | Mutant 28% | Scavenger-Mutant 12% | Scavenger-Skirmisher 6% | Tank Dominant Class ---------------- Mutant | -10/Materials Mutant | -9/Materials Mutant | -8/Materials Scavenger-Mutant | -7/Factory Scavenger-Mutant | -7/Lower Caves Mutant | -7/Lower Caves Scavenger-Skirmisher | -6/Factory Tank | -5/Factory Resources | -11 -10 -9 -8 -7 -7 -7 -6 -5 ----------- Run | Scr Mat Mat Mat Fac Low Low Fac Fac Matter Collected 1805 | 200 73 226 337 207 174 43 289 256 Remotely . | . . . . . . . . . Salvage Created 3103 | . 151 991 669 252 134 58 331 517 Parts 158 | . 8 62 32 14 8 6 6 22 Haulers Intercepted 3 | . . 2 . . . . . 1 Recyclers Shooed 2 | . . . . . . . . 2 Parts Field Recycled . | . . . . . . . . . Retrieved Matter . | . . . . . . . . . Parts Self-Destructed 14 | . . . . . 8 6 . . Prevented 1 | . . . . . 1 . . . Kills | -11 -10 -9 -8 -7 -7 -7 -6 -5 ------- Run | Scr Mat Mat Mat Fac Low Low Fac Fac Combat Hostiles Destroyed 66 | . 4 24 15 5 2 4 5 7 Guns 49 | . 4 21 9 5 2 1 1 6 Cannons 2 | . . . . . . . 1 1 AOE 14 | . . 3 6 . . 3 2 . Classes Destroyed 14 | . 1 6 1 . 1 . 2 3 Worker 2 | . . . . . . . . 2 Builder 1 | . . . . . . . . 1 Tunneler 1 | . . . . . . . 1 . Hauler 3 | . . 2 . . . . . 1 Recycler 2 | . . . 1 . . . 1 . Watcher 3 | . . 2 1 . . . . . Swarmer 13 | . . 7 . . . 4 2 . Grunt 32 | . 4 10 11 3 . . . 4 Brawler 2 | . . 1 1 . . . . . Duelist 1 | . . 1 . . . . . . Sentry 13 | . . 5 3 2 1 . 1 1 Hunter 2 | . . . . . . . 2 . Programmer 2 | . . . . . . . . 2 Behemoth 1 | . . . . . 1 . . . Best Kill Streak 7 | . 2 5 7 3 1 4 2 2 Combat Bots Only 6 | . 2 4 6 3 1 4 2 2 Max Kills in Single Turn 3 | . 1 2 3 1 1 3 2 2 Gunslinging . | . . . . . . . . . Exploded 3 | . . 2 2 . . 3 2 . Melee . | . . . . . . . . . Uniques/NPCs Destroyed . | . . . . . . . . . Combat | -11 -10 -9 -8 -7 -7 -7 -6 -5 -------- Run | Scr Mat Mat Mat Fac Low Low Fac Fac Damage Taken 5743 | . 191 1468 853 625 821 187 842 756 Core 748 | . . 290 98 77 115 34 73 61 Absorbed by Shields 111 | . . . . . . . . 111 Core Remaining (%) 77 | 100 100 27 82 . . 67 91 . Volleys Fired 234 | . 18 88 39 22 16 3 27 21 Largest 4 | . 2 2 2 2 2 2 3 4 Hottest 225 | . 40 85 79 88 112 112 193 225 Shots Fired 475 | . 36 159 68 43 30 5 56 78 Gun 425 | . 36 153 54 43 30 4 36 69 Cannon 38 | . . 6 6 . . . 17 9 Launcher 12 | . . . 8 . . 1 3 . Special . | . . . . . . . . . Kinetic 233 | . 36 83 30 22 8 . 15 39 Thermal 194 | . . 70 . 21 22 4 38 39 Explosive 12 | . . . 8 . . 1 3 . Electromagnetic 36 | . . 6 30 . . . . . Robot Hit Streak 21 | . 6 13 17 21 12 9 21 18 Robot Miss Streak 6 | . 4 4 2 4 2 2 6 4 Penetration Max 1 | . . . . . . . . 1 Secondary Targets 2 | . . 2 . . . . . . Max Gunslinging Chain 1 | . . 1 . . . . . . Shots Hit Robots 344 | . 24 110 53 33 26 3 41 54 Core Hits 191 | . 10 46 35 24 10 6 23 37 Critical Kills 1 | . . . . 1 . . . . Critical Parts Destroyed 2 | . . 2 . . . . . . Critical Strikes 9 | . . 3 . 1 1 . 2 2 Burn 6 | . . 1 . . 1 . 2 2 Destroy 3 | . . 2 . 1 . . . . Melee Attacks 2 | . . . . . . . 2 . Impact . | . . . . . . . . . Slashing 2 | . . . . . . . 2 . Piercing . | . . . . . . . . . Sneak Attacks . | . . . . . . . . . Combat Hostiles . | . . . . . . . . . Follow-up Attacks . | . . . . . . . . . Damage Inflicted 7061 | . 237 1410 1827 466 386 250 1011 1474 Guns 4404 | . 237 1112 636 466 386 28 483 1056 Cannons 952 | . . 23 117 . . . 394 418 Explosions 1705 | . . 275 1074 . . 222 134 . Melee . | . . . . . . . . . Ramming . | . . . . . . . . . Kinetic 2241 | . 237 578 373 199 96 . 208 550 Thermal 2786 | . . 569 39 267 290 28 669 924 Explosive 1631 | . . 240 1035 . . 222 134 . Electromagnetic 403 | . . 23 380 . . . . . Impact . | . . . . . . . . . Slashing . | . . . . . . . . . Piercing . | . . . . . . . . . Highest Corruption 1 | . 1 . . . . . 1 1 Average Corruption 1 | . 1 . . . . . 1 1 Corruption Purged . | . . . . . . . . . Effects 4 | . . . . . . . 4 . Message Errors 1 | . . . . . . . 1 . Energy Discharges 1 | . . . . . . . 1 . Data Loss (minor) 2 | . . . . . . . 2 . Overload Shots . | . . . . . . . . . Overflow Damage 141 | . . 12 116 . . 9 3 1 Projectiles 4 | . . . . . . . 3 1 Explosions 137 | . . 12 116 . . 9 . . Melee . | . . . . . . . . . Knockbacks . | . . . . . . . . . Impact . | . . . . . . . . . Kinetic . | . . . . . . . . . Secondary . | . . . . . . . . . Self-Inflicted Damage 293 | . . 208 39 . . 46 . . Shots 5 | . . 3 1 . . 1 . . Rammed . | . . . . . . . . . Targets Rammed . | . . . . . . . . . Kicked . | . . . . . . . . . Crushed . | . . . . . . . . . Highest Temperature 395 | . 12 395 54 144 60 . 145 318 Average Temperature 62 | . 7 118 18 50 32 . 56 44 Received Heat Transfer 1510 | . 96 456 396 246 132 . 54 130 Effects 4 | . . 4 . . . . . . Shutdowns 1 | . . 1 . . . . . . Energy Bleed 2 | . . 2 . . . . . . Short Circuit 1 | . . 1 . . . . . . Siege Activations . | . . . . . . . . . Robots Corrupted . | . . . . . . . . . Combat Hostiles . | . . . . . . . . . Parts Fried . | . . . . . . . . . Impact Corruptions . | . . . . . . . . . Robots Melted 1 | . . . . . . . 1 . Combat Hostiles 1 | . . . . . . . 1 . Parts Melted 16 | . . 2 . . 2 . 9 3 Heat Transferred 5688 | . . 1357 50 413 777 74 1325 1692 Parts Sabotaged 2 | . . . . . . . . 2 Parts Stolen . | . . . . . . . . . Parts Stripped . | . . . . . . . . . Power Chain Reactions 2 | . . 1 1 . . . . . Missiles Intercepted . | . . . . . . . . . Alert | -11 -10 -9 -8 -7 -7 -7 -6 -5 ------- Run | Scr Mat Mat Mat Fac Low Low Fac Fac Peak Influence 520 | . 145 504 504 310 . . 142 520 Initial 191 | . . 61 191 174 . . . 4 Average 151 | . 78 260 318 217 . . 18 36 Maximum Alert Level 2 | . . 2 2 1 . . . 2 Low Security (%) 66 | . 100 40 10 49 . . 100 98 Level 1 29 | . . 45 87 50 . . . . Level 2 4 | . . 13 2 . . . . 1 Level 3 . | . . . . . . . . . Level 4 . | . . . . . . . . . Level 5 . | . . . . . . . . . High Security . | . . . . . . . . . Max Security . | . . . . . . . . . Squads Dispatched 13 | . 1 2 3 1 . . 2 4 Investigation 3 | . . . 2 . . . 1 . Extermination 2 | . . . . . . . 1 1 Reinforcement 8 | . 1 2 1 1 . . . 3 Assault . | . . . . . . . . . Garrison . | . . . . . . . . . Intercept . | . . . . . . . . . Construction Impeded . | . . . . . . . . . Haulers Reinforced 1 | . . . . . . . . 1 Cargo Convoy Interrupts 1 | . . . . . . . . 1 Stealth | -11 -10 -9 -8 -7 -7 -7 -6 -5 --------- Run | Scr Mat Mat Mat Fac Low Low Fac Fac Distress Signals 2 | . . . 1 . . . . 1 Communications Jammed . | . . . . . . . . . Distress Signals . | . . . . . . . . . Times Spotted 107 | . 9 39 19 7 2 5 5 21 Peak Tracking Total 14 | . 3 6 6 4 1 4 3 14 Tactical Retreats 4 | . . 1 . . . . 1 2 Traps | -11 -10 -9 -8 -7 -7 -7 -6 -5 ------- Run | Scr Mat Mat Mat Fac Low Low Fac Fac Traps Triggered 5 | . 1 . 1 . . . 2 1 Indirectly . | . . . . . . . . . Trap Hack Attempts . | . . . . . . . . . Triggered . | . . . . . . . . . Disarmed . | . . . . . . . . . Reprogrammed . | . . . . . . . . . Reused . | . . . . . . . . . Traps Extracted . | . . . . . . . . . Installed . | . . . . . . . . . Triggered 1 | . . . . . 1 . . . Machines | -11 -10 -9 -8 -7 -7 -7 -6 -5 ---------- Run | Scr Mat Mat Mat Fac Low Low Fac Fac Machines Disabled 6 | . . 3 1 . . . 2 . Max in Single Turn 2 | . . 2 1 . . . 1 . Garrison Access 1 | . . . . . . . 1 . Machines Sabotaged . | . . . . . . . . . Garrisons Compromised . | . . . . . . . . . Overloaded Fab Kills . | . . . . . . . . . Fab Network Shutdowns . | . . . . . . . . . Hacking | -11 -10 -9 -8 -7 -7 -7 -6 -5 --------- Run | Scr Mat Mat Mat Fac Low Low Fac Fac Machines Accessed 17 | . 2 2 3 1 1 . 6 2 Terminals 7 | . 2 1 1 1 . . 2 . Fabricators 2 | . . . . . . . 1 1 Repair Stations 1 | . . . . . . . 1 . Recycling Units . | . . . . . . . . . Scanalyzers 5 | . . 1 2 . . . 1 1 Garrison Access 1 | . . . . . . . 1 . Total Hacks 62 | . 7 8 14 4 1 . 16 12 Successful 36 | . 5 8 9 2 1 . 2 9 Failed 25 | . 1 . 5 2 . . 14 3 Catastrophic 4 | . . . 1 . . . 3 . Database Lockouts 1 | . 1 . . . . . . . Manual 8 | . 5 . 3 . . . . . Terminals 22 | . 7 2 4 4 . . 5 . Fabricators 5 | . . . . . . . 1 4 Repair Stations 4 | . . . . . . . 4 . Recycling Units . | . . . . . . . . . Scanalyzers 27 | . . 6 10 . . . 3 8 Garrison Access 3 | . . . . . . . 3 . Terminal Hacks 10 | . 4 2 1 2 1 . . . Record 1 | . 1 . . . . . . . Part Schematic 1 | . 1 . . . . . . . Open Door 1 | . . . . . 1 . . . Terminal Index 1 | . . 1 . . . . . . Alert Level 2 | . . . 1 1 . . . . Unreport Threat 1 | . . . . 1 . . . . Locate Traps 2 | . 1 1 . . . . . . Recall Reinforcements 1 | . 1 . . . . . . . Fabricator Hacks 1 | . . . . . . . . 1 Load Schematic 1 | . . . . . . . . 1 Repair Station Hacks 1 | . . . . . . . 1 . Scan Component 1 | . . . . . . . 1 . Recycling Unit Hacks . | . . . . . . . . . Scanalyzer 22 | . . 6 8 . . . . 8 Insert Component 8 | . . 2 4 . . . . 2 Analyze 14 | . . 4 4 . . . . 6 Garrison Access Hacks 1 | . . . . . . . 1 . Seal Access 1 | . . . . . . . 1 . Unauthorized Hacks 1 | . 1 . . . . . . . Terminals 1 | . 1 . . . . . . . Botnet 1 | . 1 . . . . . . . Fabricators . | . . . . . . . . . Repair Stations . | . . . . . . . . . Recycling Units . | . . . . . . . . . Scanalyzers . | . . . . . . . . . Garrison Access . | . . . . . . . . . Data Cores Recovered . | . . . . . . . . . Used . | . . . . . . . . . Hacking Detections 15 | . 1 2 3 1 . . 6 2 Full Trace Events 1 | . . . 1 . . . . . Feedback Events . | . . . . . . . . . Feedback Blocked . | . . . . . . . . . Robot Schematics Acquired . | . . . . . . . . . Robots Built . | . . . . . . . . . Matter . | . . . . . . . . . Time . | . . . . . . . . . Total Robot Build Rating . | . . . . . . . . . Part Schematics Acquired 9 | . 1 2 4 . . . . 2 Parts Built . | . . . . . . . . . Matter . | . . . . . . . . . Time . | . . . . . . . . . Total Part Build Rating . | . . . . . . . . . Parts Repaired . | . . . . . . . . . Time . | . . . . . . . . . Parts Recycled . | . . . . . . . . . Recycled Matter . | . . . . . . . . . Retrieved Matter . | . . . . . . . . . Retrieved Components . | . . . . . . . . . Parts Scanalyzed 8 | . . 2 4 . . . . 2 Part Schematics Acquired 8 | . . 2 4 . . . . 2 Parts Damaged 1 | . . . 1 . . . . . Bothacking | -11 -10 -9 -8 -7 -7 -7 -6 -5 ------------ Run | Scr Mat Mat Mat Fac Low Low Fac Fac Used RIF Installer . | . . . . . . . . . Robots Hacked . | . . . . . . . . . Non-combat . | . . . . . . . . . Combat . | . . . . . . . . . Robot Hacks Applied . | . . . . . . . . . Relay Couplers Released . | . . . . . . . . . Robots Rewired . | . . . . . . . . . Allies Hacked . | . . . . . . . . . Hacks Repelled . | . . . . . . . . . Allies | -11 -10 -9 -8 -7 -7 -7 -6 -5 -------- Run | Scr Mat Mat Mat Fac Low Low Fac Fac Total Allies . | . . . . . . . . . Largest Group . | . . . . . . . . . Highest-Rated Group . | . . . . . . . . . Highest-Rated Ally . | . . . . . . . . . Total Orders . | . . . . . . . . . Ally Attacks . | . . . . . . . . . Total Damage . | . . . . . . . . . Kills . | . . . . . . . . . Allies Corrupted . | . . . . . . . . . Allies Melted . | . . . . . . . . . Intel | -11 -10 -9 -8 -7 -7 -7 -6 -5 ------- Run | Scr Mat Mat Mat Fac Low Low Fac Fac Robot Analysis Total . | . . . . . . . . . Derelict Logs Recovered 3 | . . . . . 3 . . . Drone Launches . | . . . . . . . . . Drone Recoveries . | . . . . . . . . . Exploration | -11 -10 -9 -8 -7 -7 -7 -6 -5 ------------- Run | Scr Mat Mat Mat Fac Low Low Fac Fac Turns Passed 5779 | . 268 1004 679 319 852 875 1095 687 Spaces Moved 2929 | 1 135 435 345 193 639 181 659 341 Core . | . . . . . . . . . Treads 219 | . 18 53 . . . . 97 51 Legs 1 | 1 . . . . . . . . Wheels 2709 | . 117 382 345 193 639 181 562 290 Hover . | . . . . . . . . . Flight . | . . . . . . . . . Fastest Speed 100 | 120 100 115 145 115 115 115 111 125 Average Speed 135 | 120 129 153 149 118 120 116 137 147 Slowest Speed 360 | 120 260 360 155 120 130 130 260 260 Overloaded Moves . | . . . . . . . . . Propulsion Burnouts . | . . . . . . . . . Robots Hopped . | . . . . . . . . . Cave-ins Triggered . | . . . . . . . . . Exploration Rate (%) 27 | 2 33 37 31 5 79 27 21 10 Regions Visited 8 Branch Regions 2 Pre-discovered Areas 2 | . . . . . 2 . . . Known Exits Taken 1 | . . . . . . . 1 . Unknown Exits Taken 7 | 1 1 1 1 1 1 1 . . Scrap Searched 4 | . . . . . 2 2 . . Spaces Dug 2 | . . . . . . . 2 . Terrain Destroyed 143 | . . 61 32 . . 11 36 3 Melee 2 | . . . . . . . 2 . Projectile 5 | . . . . . . . 2 3 AOE 136 | . . 61 32 . . 11 32 . Terrain Rammed . | . . . . . . . . . Walls Destroyed . | . . . . . . . . . Machines Disabled . | . . . . . . . . . Actions | -11 -10 -9 -8 -7 -7 -7 -6 -5 --------- Run | Scr Mat Mat Mat Fac Low Low Fac Fac Total 4301 | . 195 624 438 242 692 837 798 475 Wait 889 | . 31 43 5 9 19 648 70 64 Move 2921 | . 134 434 344 192 638 180 658 341 Hop . | . . . . . . . . . Pick Up 98 | . 5 25 21 6 9 3 13 16 Fast Attach 4 | . . . . . . . 1 3 Attach 53 | . 1 15 9 6 9 . 8 5 Detach 2 | . . . . . . . . 2 Swap 50 | . 3 11 12 2 1 3 11 7 Drop 46 | . 3 8 8 5 . . 8 14 Fire 234 | . 18 88 39 22 16 3 27 21 Melee 2 | . . . . . . . 2 . Ram . | . . . . . . . . . Kick . | . . . . . . . . . Crush . | . . . . . . . . . Escape Stasis 2 | . . . . . . . . 2 Rewire . | . . . . . . . . . Trap . | . . . . . . . . . Miscellaneous . | . . . . . . . . . Route ------- -11/Scrapyard -10/Materials -9/Materials (discovered 2 exits: *Mat / [*Min]) -8/Materials -7/Factory -7/Lower Caves -7/Lower Caves -6/Factory -5/Factory History --------- Turn | Location | Event 1 | -11/Scrapyard | Discovered new exit (range 0) 1 | -11/Scrapyard | Entered Materials 120 | -10/Materials | Central database locked down 250 | -10/Materials | Discovered new exit (range 11) 269 | -10/Materials | Entered another Materials area 269 | -9/Materials | Evolved 2 slots: Utility x2 321 | -9/Materials | Build established: Mutant 817 | -9/Materials | Build established: Scavenger-Mutant 956 | -9/Materials | Discovered new exit (range 15) 1137 | -9/Materials | Discovered new exit (range 8) 1191 | -9/Materials | Core integrity fell below 50% 1231 | -9/Materials | Lost 6 parts (1p2u3w) 1273 | -9/Materials | Entered another Materials area 1273 | -8/Materials | Evolved 2 slots: Propulsion x1, Utility x1 1697 | -8/Materials | Lost 3 parts (1n2u) 1795 | -8/Materials | Build established: Mutant 1870 | -8/Materials | Discovered new exit (range 5) 1952 | -8/Materials | Entered Factory 1952 | -7/Factory | Evolved 2 slots: Propulsion x1, Utility x1 2131 | -7/Factory | Build established: Scavenger-Mutant 2247 | -7/Factory | Discovered new exit (range 4) 2271 | -7/Factory | Entered Lower Caves 2279 | -7/Lower Caves | Encountered a Warlord checkpoint 2309 | -7/Lower Caves | Attracted the attention of an 0b10 checkpoint 2441 | -7/Lower Caves | Learned location of Extension (-6) 2779 | -7/Lower Caves | Spotted B-75 Beast 2824 | -7/Lower Caves | Destroyed B-75 Beast 2841 | -7/Lower Caves | Lost 8 parts (1p4n2u1w) 2843 | -7/Lower Caves | Learned Factory emergency access door positions 2940 | -7/Lower Caves | Learned location of Zion (-6) 3080 | -7/Lower Caves | Build established: Mutant 3108 | -7/Lower Caves | Discovered new exit (range 6) 3123 | -7/Lower Caves | Entered another Lower Caves area 3993 | -7/Lower Caves | Discovered new exit (range 5) 3998 | -7/Lower Caves | Attracted the attention of an 0b10 checkpoint 3998 | -7/Lower Caves | Entered Factory 3998 | -6/Factory | Evolved 2 slots: Utility x1, Weapon x1 4302 | -6/Factory | Build established: Scavenger-Skirmisher 4802 | -6/Factory | Lost 5 parts (1p1n2u1w) 4911 | -6/Factory | Discovered new exit (range 9) 5088 | -6/Factory | Identified exit to Factory 5093 | -6/Factory | Entered another Factory area 5093 | -5/Factory | Evolved 2 slots: Utility x1, Weapon x1 5114 | -5/Factory | Build established: Mutant 5724 | -5/Factory | Build established: Tank 5772 | -5/Factory | Cargo convoy interrupted 5780 | -5/Factory | Self-destructed Last Messages --------------- Critical hit (Burn: +27). K-01 Serf collects debris. R-10 Processor collects Imp. Medium Armor Plating. C-30 ARC bursts open, deploying its payload. P-70 Sage unfolds itself. H-66 Slayer unfolds itself. E-15 Imp unfolds itself. Slug penetrates E-15 Imp. Penetrated by Slug. Slug penetrates A-27 Freighter. Slug penetrates Wall. Imp. Medium Treads destroyed. U-05 Engineer builds a Wall. Penetrated by Slug. Lgt. Angular Momentum Engine blown off. Gauss Rifle blown off. E-15 Imp destroyed. Arm. Wheel destroyed. Imp. Medium Treads destroyed. Slug penetrates Wall. Map ----- +----------------------------------------------------+ | ??????????????????????# + """" # | | ??????????????????????+ # """" ## | | ??????????????????????# # """" ""#? | | ??????????????????????# ######## """"?? Y"#? | | ??????????############# #??????# ??? ""?? | | ????????? #??????# ??????? | | ????????? #??????#########?????? | | ??????????? """ #????????????????????? | | ????????????"F"" """ !!! +????????????????????? | | ?????????? ""!"" """ !! #????????????????????? | | ????????? !!! """ !! #????????????????????? | | ????????? !! #????????????????????? | | ????????????"" """ """ ! #????????????????????? | | ?????????????"?""" """ ! #????????????????????? | | ???????????""" """ """ ! #????????????????????? | | ????????? #????????????????????? | | ????????? ] #????????????????????? | | ????????? ########## ###############?????????? | | ??????????????# # ## #?????????? | | ??????????????# !! ] + ## ! #?????????? | | ??????????????# !! # ## ! #?????????? | | ??????????????# !! ] # ## #?????????? | | ??????????????# # ## #?????????? | | ??????????????##########g## #?????????? | | ?????????????????#######g##=h p #?????????? | | ?????????? + uAu@/p #?????????? | | ??????????????""" #### [#hph #?????????? | | ???????????????????????# ## R% #?????????? | | ???????????????????????# ## % #?????????? | | ???????????????????????#k## #?????????? | | ???????????????????????#/######+#/######## | | ??????????????????????? ????# | | ???????????????????????"""????# ###### | | ???????????????????????"""????# #????????????? | | ??????????????????????""""??? / #????????????? | | ???????????????????????"""? # #????????????? | | ?????????????????????????? # #????????????? | | ????????????????????????"" ?# #????????????? | | ???????????????????????? ??# #????????????? | | ??????????????????????? ??# #????????????? | | ??????????????????????#####???# #????????????? | | ??????????????????????????????# +????????????? | | ??????????????????????????????# #????????????? | | ??????????????????????????????# #????????????? | | ??????????????????????????????# #????????????? | | ??????????????????????????????# ?????????????? | | ??????????????????????????????? ?????????????? | | ????????????????????????????????? ?????????????? | | ?????????????????????????????????????????????????? | | ?????????????????????????????????????????????????? | +----------------------------------------------------+ Best States ------------- Heat Dissipation 67 Energy Generation 18 Energy Capacity 500 Matter Stores 300 Matter Capacity 300 Sight Range 20 Robot Scan Range 15 Terrain Scan Range 16 Terrain Scan Density 10 Armor Coverage 375 Core Shielding 20 Propulsion Shielding 66 Phase Shifting 5 Evasion (%) 45 Targeting Accuracy 8 Target Analysis 5 Recoil Reduction 2 Particle Charging 15 Offensive Hacking 12 Defensive Hacking 10 Item Schematics ----------------- Lrg. Storage Unit | -10/Materials | Hacked Imp. Propulsion Shielding | -9/Materials | Scanalyzed Particle Gun | -9/Materials | Scanalyzed Imp. Sensor Array | -8/Materials | Scanalyzed Hrd. Light Armor Plating | -8/Materials | Scanalyzed Adv. Visual Processing Unit | -8/Materials | Scanalyzed Hvy. EM Pulse Gun | -8/Materials | Scanalyzed Missile Launcher | -5/Factory | Scanalyzed Phase Shifter | -5/Factory | Scanalyzed Robot Schematics ------------------ None Fabricated ------------ Nothing Alien Tech Used ----------------- None Achievements -------------- None Challenges ------------ None Game ------ Seed FlakCryofiberReactor Manual? 0 Play Time 00:39:49 Cumulative 196.6 hours Start 2021.06.09 @ 19:43:27 End 2021.06.09 @ 20:29:09 Sessions 1 Manual Loads 0 Difficulty Rogue Special Mode None Game No. 245 Rogue 245 Adventurer 0 Explorer 0 Win Type - Total 2 Types 2/0/0/0/0/0/0/0/0 Lore% 58 Gallery% 76 Achievement% 57 Wizard Run 0 Options --------- ASCII 0 Keyboard 0 Movement Mouse Keybinds 1 Fullscreen 2 Font 24/Smallcaps Map View 76x50 Tactical HUD 1 Map Filters NONE Filters NONE Steam 1 RUN: 0acb04d1-4c7e-4f09-9a66-c396d77cc699